bitfinex/quotes_SOLUSD_20240620
["timestamp","ask_amount","ask_price","bid_price","bid_amount"]
[1718872808970,7.3112,136.78,136.74,16.3252]
[1718872810490,7.3115,136.77,136.74,16.3252]
[1718872810875,7.3112,136.78,136.74,16.3252]
[1718872811595,7.3106,136.79,136.74,16.3252]
[1718872812095,7.3101,136.8,136.74,16.3252]
[1718872812695,5.73658312,136.83,136.75,0.17]
[1718872812993,7.307,136.86,136.79,0.17]
[1718872813197,18.2654,136.88,136.79,0.17]
[1718872813198,7.3072,136.85,136.79,20.68]
[1718872813406,7.3078,136.84,136.79,20.0]
[1718872813619,7.3077,136.85,136.79,20.0]
[1718872813899,7.3077,136.85,136.8,0.34]
[1718872814995,7.3069,136.86,136.8,0.34]
[1718872815386,7.3073,136.85,136.8,0.34]
[1718872815584,18.2654,136.88,136.8,0.34]
[1718872815790,7.3071,136.86,136.8,0.34]
[1718872816891,7.3073,136.85,136.8,0.34]
[1718872817289,7.3072,136.86,136.8,0.34]
[1718872817893,7.3072,136.86,136.79,20.0]
[1718872818212,18.6067,136.87,136.79,20.0]
[1718872818509,0.17,136.86,136.79,20.0]
[1718872818712,7.308,136.84,136.78,15.8611]
[1718872818883,7.3101,136.8,136.78,15.8611]
[1718872819082,7.3087,136.83,136.78,15.8611]
[1718872819287,7.309,136.82,136.78,15.8611]
[1718872819503,0.17,136.85,136.78,15.8611]
[1718872819706,7.3102,136.8,136.78,15.8611]
[1718872820219,7.3096,136.81,136.78,15.8611]
[1718872820510,18.2733,136.82,136.76,6.2515]
[1718872820803,7.3104,136.79,136.76,6.2515]
[1718872821303,7.3104,136.79,136.74,15.8611]
[1718872821304,7.3115,136.77,136.74,15.8611]
[1718872821618,7.3122,136.76,136.73,6.2515]
[1718872821918,18.277,136.79,136.73,6.2515]
[1718872821919,7.3117,136.77,136.73,6.2515]
[1718872822102,7.3123,136.76,136.73,6.2515]
[1718872823702,7.3126,136.75,136.71,15.8611]
[1718872823898,18.2791,136.77,136.7,6.3629]
[1718872824093,7.3144,136.72,136.7,6.3629]
[1718872824596,7.3143,136.72,136.68,15.7446]
[1718872825206,7.3138,136.73,136.68,15.7446]
[1718872825408,7.3133,136.74,136.68,15.7446]
[1718872825611,7.3148,136.71,136.67,6.3629]
[1718872825913,18.6243,136.73,136.67,6.3629]
[1718872825914,7.3144,136.72,136.67,6.3629]
[1718872826288,7.3152,136.71,136.67,6.3629]
[1718872827021,0.34,136.76,136.67,6.3629]
[1718872827197,7.3139,136.73,136.67,6.3629]
[1718872827395,34.0753,136.79,136.68,20.0]
[1718872827603,34.0753,136.79,136.69,15.0917]
[1718872827997,7.3126,136.76,136.69,15.0917]
[1718872828518,7.3126,136.75,136.69,15.0917]
[1718872829192,7.3132,136.74,136.69,15.0917]
[1718872830102,7.3126,136.75,136.69,15.0917]
[1718872830413,7.3122,136.76,136.69,15.0917]
[1718872830609,7.3127,136.75,136.69,15.0917]
[1718872831615,7.3121,136.76,136.69,15.0917]
[1718872831802,7.3126,136.75,136.69,15.0917]
[1718872832287,18.2787,136.78,136.69,15.0917]
[1718872832288,7.3131,136.74,136.69,15.0917]
[1718872832687,7.3128,136.75,136.69,15.0917]
[1718872833092,7.3122,136.76,136.69,15.0917]
[1718872833614,7.3117,136.77,136.71,6.5813]
[1718872833799,18.2748,136.8,136.71,6.5813]
[1718872833800,7.3113,136.78,136.73,0.17]
[1718872834122,21.09289554,136.82,136.74,15.0917]
[1718872834296,7.3105,136.79,136.74,15.0917]
[1718872834490,7.3101,136.8,136.74,15.0917]
[1718872835407,7.3106,136.79,136.74,15.0917]
[1718872837602,7.3101,136.8,136.74,15.0917]
[1718872838305,7.3106,136.79,136.74,15.0917]
[1718872839225,7.3097,136.81,136.75,0.17]
[1718872839516,7.3095,136.81,136.75,0.34]
[1718872840821,7.3099,136.8,136.75,0.34]
[1718872841204,7.3108,136.79,136.74,15.0917]
[1718872841705,7.3101,136.8,136.74,15.0917]
[1718872842209,7.3105,136.79,136.74,15.0917]
[1718872842523,7.311,136.78,136.74,15.0917]
[1718872843227,18.2732,136.82,136.74,15.0917]
[1718872843516,7.3104,136.79,136.74,15.0917]
[1718872843722,7.311,136.78,136.74,15.0917]
[1718872844515,7.3115,136.77,136.74,15.0917]
[1718872846409,7.312,136.76,136.74,15.0917]
[1718872846914,7.3116,136.77,136.74,15.0917]
[1718872847822,7.3121,136.76,136.74,15.0917]
[1718872848513,7.3117,136.77,136.74,15.0917]
[1718872848727,18.2759,136.8,136.71,8.40607099]
[1718872848906,7.3142,136.72,136.7,15.8234]
[1718872849113,7.3133,136.74,136.7,15.8234]
[1718872849304,18.2789,136.77,136.7,15.8234]
[1718872849717,0.17,136.78,136.7,15.8234]
[1718872849938,7.3127,136.75,136.7,15.8234]
[1718872850428,7.3134,136.74,136.7,15.8234]
[1718872850611,7.3126,136.75,136.7,15.8234]
[1718872851018,7.3132,136.74,136.7,15.8234]
[1718872851529,7.3139,136.73,136.7,15.8234]
[1718872851731,7.3139,136.73,136.68,6.0914]
[1718872851732,7.3141,136.73,136.68,6.0914]
[1718872852230,18.2805,136.76,136.68,6.0914]
[1718872852430,7.3127,136.75,136.68,6.0914]
[1718872852604,7.3133,136.74,136.68,6.0914]
[1718872853016,7.3137,136.73,136.68,6.0914]
[1718872853534,7.3142,136.72,136.68,6.0914]
[1718872853714,7.3136,136.74,136.68,6.0914]
[1718872853909,7.3139,136.73,136.68,6.0914]
[1718872854104,7.3142,136.72,136.68,6.0914]
[1718872854723,0.17,136.74,136.68,6.0914]
[1718872854925,7.3149,136.71,136.67,15.8234]
[1718872855113,65.68,136.74,136.67,15.8234]
[1718872855114,7.3153,136.7,136.67,15.8234]
[1718872855312,7.3148,136.71,136.67,15.8234]
[1718872855514,21.10412012,136.78,136.67,15.8234]
[1718872855515,39.38242012,136.78,136.67,15.8234]
[1718872855829,21.10412012,136.78,136.67,15.8234]
[1718872856017,255.9,136.79,136.67,15.8234]
[1718872856224,255.9,136.79,136.68,20.0]
[1718872856225,7.3122,136.76,136.68,20.0]
[1718872856731,7.3115,136.77,136.7,6.5204]
[1718872857428,7.3121,136.76,136.7,6.5204]
[1718872858131,7.3128,136.75,136.7,6.5204]
[1718872858338,7.3127,136.75,136.7,6.5204]
[1718872858535,7.3124,136.76,136.7,6.5204]
[1718872858734,7.3117,136.77,136.7,6.5204]
[1718872858935,255.9,136.79,136.72,16.5234]
[1718872859137,7.3113,136.78,136.72,16.5234]
[1718872859437,7.3115,136.77,136.72,16.5234]
[1718872860517,15.0314,136.78,136.7,6.5204]
[1718872860720,18.2819,136.75,136.7,6.5204]
[1718872860914,7.3143,136.72,136.7,6.5204]
[1718872861333,7.3138,136.73,136.7,6.5204]
[1718872862043,7.3132,136.74,136.7,6.5204]
[1718872862337,21.1093864,136.78,136.7,6.5204]
[1718872862751,21.1093864,136.82,136.76,22.4434]
[1718872862936,21.1093864,136.83,136.77,0.51]
[1718872863236,7.3069,136.86,136.78,0.17]
[1718872863844,7.3073,136.85,136.78,0.17]
[1718872865845,7.3069,136.86,136.78,0.17]
[1718872866629,7.3073,136.85,136.78,0.17]
[1718872867031,7.308,136.84,136.77,22.12]
[1718872867643,7.3083,136.83,136.77,22.12]
[1718872867839,18.2641,136.88,136.76,22.4434]
[1718872867840,7.3095,136.81,136.76,22.4434]
[1718872868051,0.17,136.88,136.76,22.4434]
[1718872868052,18.2668,136.86,136.76,22.4434]
[1718872868353,7.3095,136.81,136.76,22.4434]
[1718872868640,7.309,136.82,136.76,22.4434]
[1718872869043,7.3084,136.83,136.76,22.4434]
[1718872869226,7.308,136.84,136.76,22.4434]
[1718872869427,7.3083,136.83,136.77,0.51]
[1718872869642,7.3092,136.82,136.77,0.34]
[1718872869832,7.3084,136.83,136.77,0.34]
[1718872870032,7.3082,136.84,136.78,0.17]
[1718872870265,7.3093,136.82,136.76,22.4434]
[1718872870443,18.2693,136.85,136.76,22.4434]
[1718872870750,7.3091,136.82,136.76,22.4434]
[1718872870953,18.2693,136.85,136.76,22.4434]
[1718872871153,18.2693,136.85,136.77,0.17]
[1718872871329,18.2653,136.88,136.77,0.34]
[1718872871531,7.3057,136.88,136.79,0.17]
[1718872871732,18.2605,136.91,136.82,16.1135]
[1718872871951,7.3065,136.87,136.82,16.1135]
[1718872872530,7.3057,136.88,136.83,0.17]
[1718872873032,7.3062,136.87,136.83,0.17]
[1718872873232,7.3062,136.87,136.82,16.1135]
[1718872874047,7.3055,136.89,136.83,0.51]
[1718872874250,7.3055,136.89,136.83,0.68]
[1718872874554,18.2605,136.91,136.83,0.68]
[1718872874751,7.3057,136.88,136.83,0.68]
[1718872874935,7.3052,136.89,136.83,0.68]
[1718872875548,7.3046,136.9,136.84,6.5275]
[1718872875853,7.3051,136.89,136.84,6.5275]
[1718872876446,7.3048,136.9,136.84,6.5275]
[1718872876754,7.3054,136.89,136.84,6.5275]
[1718872877058,7.3057,136.88,136.84,6.5275]
[1718872877238,7.3053,136.89,136.84,6.5275]
[1718872878344,18.2587,136.93,136.84,6.5275]
[1718872878651,7.3054,136.89,136.84,6.5275]
[1718872879958,7.3047,136.9,136.84,6.5275]
[1718872880141,7.3052,136.89,136.84,6.5275]
[1718872880342,7.3047,136.9,136.84,6.5275]
[1718872884364,7.3043,136.91,136.85,0.68]
[1718872885351,43.95,137.01,136.85,0.68]
[1718872885352,255.9,136.96,136.87,0.17]
[1718872885674,7.3018,136.96,136.87,20.68]
[1718872885847,7.3018,136.96,136.87,42.29]
[1718872886247,7.3018,136.96,136.9,0.17]
[1718872886248,7.3017,136.96,136.9,0.17]
[1718872886466,7.3007,136.98,136.9,0.68]
[1718872886670,7.3009,136.97,136.9,0.68]
[1718872887165,7.3014,136.96,136.9,0.68]
[1718872887556,7.3022,136.95,136.9,0.51]
[1718872887873,7.3035,136.92,136.89,22.7048]
[1718872888080,64.3799,136.99,136.86,6.1095]
[1718872888081,18.2613,136.91,136.86,6.1095]
[1718872888248,7.3054,136.89,136.86,6.1095]
[1718872889359,7.3057,136.88,136.86,6.1095]
[1718872889552,7.3062,136.87,136.86,6.1095]
[1718872889763,7.3079,136.84,136.82,6.1095]
[1718872889956,7.3072,136.85,136.82,6.1095]
[1718872890271,7.3069,136.86,136.82,6.1095]
[1718872890459,18.43,136.92,136.82,6.1095]
[1718872890650,7.3062,136.87,136.82,6.1095]
[1718872890840,18.7714,136.91,136.82,6.1095]
[1718872891051,7.3063,136.87,136.82,6.1095]
[1718872891871,18.2627,136.9,136.82,6.1095]
[1718872892171,0.17,136.89,136.82,6.1095]
[1718872892355,7.3074,136.85,136.82,6.1095]
[1718872892551,7.3068,136.86,136.82,6.1095]
[1718872894270,7.3079,136.84,136.82,6.1095]
[1718872894568,7.3074,136.85,136.82,6.1095]
[1718872895346,18.2664,136.87,136.79,6.2841]
[1718872895552,7.309,136.82,136.79,6.2841]
[1718872897178,7.3094,136.81,136.79,6.2841]
[1718872897352,7.3094,136.81,136.75,21.7735]
[1718872897859,18.2721,136.83,136.75,21.7735]
[1718872898368,7.3097,136.81,136.75,21.7735]
[1718872899351,7.3099,136.8,136.75,21.7735]
[1718872900054,7.3096,136.81,136.75,21.7735]
[1718872900253,7.3085,136.83,136.76,0.17]
[1718872900456,7.3085,136.83,136.76,0.34]
[1718872901773,7.3089,136.82,136.76,0.34]
[1718872901973,7.3085,136.83,136.76,0.34]
[1718872902173,7.3085,136.83,136.77,0.17]
[1718872902379,7.3078,136.84,136.77,0.17]
[1718872902577,7.3089,136.82,136.77,0.34]
[1718872902877,7.3089,136.82,136.77,0.17]
[1718872903178,7.3089,136.82,136.76,0.68]
[1718872903480,7.3085,136.83,136.76,0.68]
[1718872903956,18.2703,136.84,136.75,21.7735]
[1718872904157,7.311,136.78,136.75,21.7735]
[1718872905580,7.3101,136.8,136.75,21.7735]
[1718872906562,7.3105,136.79,136.75,21.7735]
[1718872906971,7.3111,136.78,136.75,21.7735]
[1718872908072,7.3116,136.77,136.75,6.2841]
[1718872908389,7.3112,136.78,136.72,15.002]
[1718872908693,7.3125,136.76,136.72,15.002]
[1718872908986,7.3127,136.75,136.72,15.002]
[1718872909287,7.3133,136.74,136.71,6.0392]
[1718872909472,7.3099,136.8,136.72,15.002]
[1718872909670,7.3101,136.8,136.72,15.002]
[1718872909865,7.3096,136.81,136.72,36.612]
[1718872910261,7.3105,136.79,136.72,36.612]
[1718872911279,5.69830257,136.84,136.72,15.002]
[1718872911462,146.3739,136.83,136.72,15.002]
[1718872911868,7.3124,136.76,136.72,15.002]
[1718872912066,7.3117,136.77,136.72,15.002]
[1718872912277,7.3121,136.76,136.72,15.002]
[1718872912475,7.3126,136.75,136.72,15.002]
[1718872912860,18.2774,136.79,136.72,15.002]
[1718872913064,7.3117,136.77,136.72,15.002]
[1718872915684,7.3121,136.76,136.72,15.002]
[1718872916262,7.3122,136.76,136.72,15.002]
[1718872916466,7.3116,136.77,136.72,15.002]
[1718872916884,0.17,136.8,136.72,15.002]
[1718872917389,7.3119,136.77,136.72,15.002]
[1718872917766,0.34,136.8,136.72,15.002]
[1718872917767,7.3121,136.76,136.72,15.002]
[1718872918777,7.3117,136.77,136.72,15.002]
[1718872919166,7.3111,136.78,136.72,15.002]
[1718872919966,7.3115,136.77,136.72,15.002]
[1718872920166,7.311,136.78,136.72,15.002]
[1718872920386,60.8136,136.83,136.72,15.002]
[1718872920589,54.2097,136.83,136.73,0.17]
[1718872920773,7.3097,136.81,136.73,0.34]
[1718872921270,34.2097,136.83,136.72,15.002]
[1718872921471,7.3119,136.77,136.72,15.002]
[1718872921679,7.3111,136.78,136.72,15.002]
[1718872921879,18.2768,136.79,136.72,15.002]
[1718872922072,7.3112,136.78,136.72,15.002]
[1718872922593,18.2762,136.79,136.72,15.002]
[1718872922801,7.3132,136.74,136.72,15.002]
[1718872922968,45.34,136.78,136.71,6.0392]
[1718872923169,7.3127,136.75,136.71,6.0392]
[1718872923593,7.3133,136.74,136.71,6.0392]
[1718872923890,63.6188,136.78,136.71,6.0392]
[1718872923891,7.313,136.75,136.71,6.0392]
[1718872924095,7.3132,136.74,136.71,6.0392]
[1718872924293,7.3128,136.75,136.71,6.0392]
[1718872924598,63.6188,136.78,136.71,6.0392]
[1718872924797,7.3128,136.75,136.69,15.453]
[1718872924971,7.3139,136.73,136.69,15.453]
[1718872925296,18.2803,136.76,136.69,15.453]
[1718872925297,7.3122,136.76,136.69,15.453]
[1718872925597,7.3122,136.76,136.7,0.34]
[1718872927371,7.3128,136.75,136.69,15.453]
[1718872928070,7.3122,136.76,136.7,0.17]
[1718872928295,7.3126,136.75,136.7,0.17]
[1718872928597,7.3126,136.75,136.69,15.453]
[1718872929592,7.3123,136.76,136.69,15.453]
[1718872930598,7.3123,136.76,136.7,0.17]
[1718872931397,18.2771,136.79,136.69,15.453]
[1718872931598,63.7887,136.78,136.69,15.453]
[1718872931789,18.6187,136.78,136.69,15.453]
[1718872931973,7.3128,136.75,136.69,15.453]
[1718872932175,7.3123,136.76,136.7,0.17]
[1718872932383,7.3116,136.77,136.7,0.17]
[1718872932588,7.3121,136.76,136.71,6.0593]
[1718872934604,7.3127,136.75,136.71,6.0593]
[1718872937084,18.2801,136.77,136.71,6.0593]
[1718872937287,45.34,136.76,136.69,15.453]
[1718872937491,7.3138,136.73,136.69,15.453]
[1718872937705,7.3139,136.73,136.69,15.453]
[1718872937890,18.2817,136.75,136.69,15.453]
[1718872938205,45.34,136.76,136.69,15.453]
[1718872938379,7.3133,136.74,136.69,15.453]
[1718872938781,7.3137,136.73,136.69,15.453]
[1718872939196,7.3144,136.72,136.69,15.453]
[1718872939502,7.3138,136.73,136.69,15.453]
[1718872940494,18.2822,136.75,136.69,15.453]
[1718872940681,7.316,136.69,136.67,6.0593]
[1718872940889,7.3154,136.7,136.67,6.0593]
[1718872941294,7.3159,136.69,136.67,6.0593]
[1718872942098,7.3159,136.69,136.66,16.5145]
[1718872942277,18.6213,136.76,136.66,16.5145]
[1718872942483,7.314,136.73,136.66,16.5145]
[1718872943105,7.3142,136.72,136.66,16.5145]
[1718872943481,7.3148,136.71,136.68,7.21]
[1718872943684,7.3148,136.71,136.67,7.21]
[1718872943879,7.3148,136.71,136.66,16.5145]
[1718872944103,7.3148,136.71,136.67,7.21]
[1718872945183,7.21,136.72,136.66,16.5145]
[1718872945402,7.3162,136.69,136.66,16.5145]
[1718872945704,7.3154,136.7,136.66,16.5145]
[1718872946104,7.3159,136.69,136.66,16.5145]
[1718872946294,7.3153,136.7,136.66,16.5145]
[1718872946890,7.21,136.69,136.64,6.5852]
[1718872947090,7.21,136.69,136.64,13.7952]
[1718872947298,7.3167,136.68,136.64,13.7952]
[1718872947691,7.3172,136.67,136.64,6.5852]
[1718872948195,7.3165,136.68,136.64,6.5852]
[1718872949187,0.34,136.71,136.64,13.7952]
[1718872949387,7.21,136.68,136.64,6.5852]
[1718872949599,7.3165,136.68,136.64,6.5852]
[1718872949807,7.21,136.69,136.64,6.5852]
[1718872949987,7.3176,136.66,136.63,15.692]
[1718872950401,7.3171,136.67,136.63,15.692]
[1718872951113,14.5265,136.68,136.63,15.692]
[1718872951322,7.21,136.68,136.63,15.692]
[1718872952193,7.317,136.67,136.63,15.692]
[1718872952923,7.317,136.67,136.63,22.902]
[1718872953427,14.5265,136.68,136.63,22.902]
[1718872953921,0.34,136.71,136.63,15.692]
[1718872954126,7.3155,136.7,136.63,15.692]
[1718872954299,7.21,136.69,136.63,15.692]
[1718872954494,14.526,136.69,136.64,7.21]
[1718872954821,7.21,136.68,136.63,15.692]
[1718872955520,0.34,136.71,136.63,15.692]
[1718872955717,7.3161,136.69,136.63,15.692]
[1718872955926,14.5261,136.69,136.64,7.21]
[1718872956133,7.3161,136.69,136.64,7.21]
[1718872956293,7.3164,136.68,136.63,15.692]
[1718872956618,7.3164,136.68,136.64,7.21]
[1718872956826,7.3164,136.68,136.63,15.692]
[1718872956993,7.3164,136.68,136.64,7.21]
[1718872957196,14.526,136.69,136.64,7.21]
[1718872957408,7.316,136.69,136.64,7.21]
[1718872957695,5.68757319,136.73,136.64,0.17]
[1718872957901,7.3143,136.72,136.68,7.21]
[1718872958621,7.3138,136.73,136.69,7.21]
[1718872958835,7.21,136.73,136.67,6.0776]
[1718872958995,7.3159,136.69,136.67,6.0776]
[1718872959321,7.3156,136.7,136.67,6.0776]
[1718872959697,7.3159,136.69,136.65,7.21]
[1718872959908,14.5255,136.7,136.65,7.21]
[1718872960204,7.21,136.7,136.64,13.2876]
[1718872960411,7.21,136.7,136.64,6.0776]
[1718872960617,7.3165,136.68,136.64,13.2876]
[1718872960821,7.3161,136.69,136.64,13.2876]
[1718872961024,7.3164,136.68,136.64,6.0776]
[1718872961226,7.316,136.69,136.64,13.2876]
[1718872961823,7.21,136.7,136.64,13.2876]
[1718872961824,7.3164,136.68,136.64,13.2876]
[1718872961999,7.316,136.69,136.64,13.2876]
[1718872962205,14.5254,136.7,136.65,7.21]
[1718872962618,7.3159,136.69,136.65,7.21]
[1718872962915,7.3163,136.68,136.64,6.0776]
[1718872963121,7.3163,136.68,136.64,13.2876]
[1718872963326,7.3173,136.67,136.64,6.0776]
[1718872963626,7.317,136.67,136.64,6.0776]
[1718872963837,7.21,136.7,136.64,13.2876]
[1718872964037,7.3159,136.69,136.64,13.2876]
[1718872964220,7.3164,136.68,136.64,13.2876]
[1718872964429,7.3164,136.68,136.64,6.0776]
[1718872964804,7.3164,136.68,136.64,13.2876]
[1718872965236,7.21,136.7,136.64,13.2876]
[1718872965237,7.316,136.69,136.64,13.2876]
[1718872965407,7.316,136.69,136.65,7.21]
[1718872966110,0.17,136.71,136.65,7.21]
[1718872966311,7.21,136.7,136.64,6.0776]
[1718872966514,7.3163,136.68,136.65,7.21]
[1718872966715,7.316,136.69,136.64,6.0776]
[1718872966913,7.21,136.7,136.64,6.0776]
[1718872966914,7.3179,136.65,136.64,6.0776]
[1718872967151,7.3176,136.66,136.64,6.0776]
[1718872967439,7.3165,136.68,136.64,6.0776]
[1718872968114,7.3165,136.68,136.64,13.2876]
[1718872968513,7.3165,136.68,136.64,6.0776]
[1718872968713,7.3165,136.68,136.64,13.2876]
[1718872969017,7.3154,136.7,136.66,7.21]
[1718872969429,7.316,136.69,136.66,7.21]
[1718872970019,7.3153,136.7,136.66,7.21]
[1718872970213,7.3139,136.73,136.65,0.17]
[1718872970413,7.3139,136.73,136.69,7.21]
[1718872970613,7.3142,136.72,136.69,7.21]
[1718872971221,24.14040876,136.76,136.69,7.21]
[1718872971222,7.3139,136.73,136.69,7.21]
[1718872971411,7.3149,136.71,136.68,7.21]
[1718872973540,25.4929,136.74,136.68,7.21]
[1718872973744,39.39079325,136.77,136.7,13.3235]
[1718872974041,7.3126,136.75,136.71,7.21]
[1718872974820,18.2787,136.78,136.71,7.21]
[1718872975033,18.2787,136.78,136.7,6.1135]
[1718872975230,18.2787,136.78,136.73,7.21]
[1718872975231,25.4887,136.78,136.73,7.21]
[1718872975617,7.3127,136.75,136.73,7.21]
[1718872975926,7.3127,136.75,136.72,7.21]
[1718872976239,7.3133,136.74,136.71,7.21]
[1718872976419,7.3127,136.75,136.71,7.21]
[1718872976618,7.3132,136.74,136.7,6.1135]
[1718872976914,7.3096,136.81,136.75,6.1135]
[1718872977119,21.11089325,136.82,136.75,6.1135]
[1718872977120,28.42009325,136.82,136.75,6.1135]
[1718872977325,7.3092,136.82,136.78,7.21]
[1718872977812,7.3082,136.84,136.79,7.21]
[1718872978013,7.21,136.85,136.8,7.21]
[1718872978427,18.2661,136.87,136.8,7.21]
[1718872978635,25.4781,136.85,136.8,7.21]
[1718872978815,7.3094,136.82,136.76,0.17]
[1718872979137,7.3094,136.82,136.8,7.21]
[1718872979332,7.3094,136.82,136.79,7.21]
[1718872979525,7.3094,136.82,136.76,0.34]
[1718872979727,7.3094,136.82,136.76,20.34]
[1718872980341,18.2722,136.82,136.76,20.0]
[1718872980647,18.2693,136.85,136.76,20.0]
[1718872980816,7.3094,136.81,136.76,20.0]
[1718872981217,7.3085,136.83,136.76,20.0]
[1718872981523,51.42255048,136.88,136.77,0.34]
[1718872981840,7.308,136.84,136.77,0.34]
[1718872982137,7.3084,136.83,136.77,0.17]
[1718872982340,7.3084,136.83,136.76,20.0]
[1718872982641,7.3084,136.83,136.77,0.34]
[1718872983221,7.3088,136.82,136.76,20.0]
[1718872983425,7.309,136.82,136.76,20.0]
[1718872983625,7.3085,136.83,136.76,20.0]
[1718872984244,7.308,136.84,136.76,20.0]
[1718872984424,7.3073,136.85,136.77,0.17]
[1718872984627,326.5727,136.89,136.79,0.17]
[1718872984628,290.0453,136.89,136.79,0.17]
[1718872984820,290.0453,136.89,136.79,20.34]
[1718872984821,7.3072,136.85,136.79,20.34]
[1718872985018,7.3078,136.84,136.79,20.0]
[1718872985631,52.4094,136.89,136.78,21.8917]
[1718872985837,7.3084,136.83,136.78,21.8917]
[1718872986019,7.308,136.84,136.78,21.8917]
[1718872986421,7.3084,136.83,136.78,21.8917]
[1718872987548,7.3089,136.82,136.78,21.8917]
[1718872987737,0.17,136.85,136.78,21.8917]
[1718872987928,45.51,136.85,136.78,21.8917]
[1718872988134,45.34,136.85,136.78,21.8917]
[1718872988323,7.308,136.84,136.78,21.8917]
[1718872988730,7.3086,136.83,136.78,21.8917]
[1718872989340,45.0,136.85,136.78,21.8917]
[1718872989855,7.3085,136.83,136.78,21.8917]
[1718872990437,15.8816,136.89,136.78,21.8917]
[1718872990647,7.3079,136.84,136.78,21.8917]
[1718872990824,7.3074,136.85,136.78,21.8917]
[1718872991025,7.3078,136.84,136.78,21.8917]
[1718872991749,7.3079,136.84,136.78,21.8917]
[1718872991924,7.3083,136.83,136.78,21.8917]
[1718872992124,7.3088,136.82,136.78,21.8917]
[1718872992723,52.5787,136.89,136.78,21.8917]
[1718872992724,7.3103,136.8,136.78,21.8917]
[1718872993137,7.3095,136.81,136.78,21.8917]
[1718872993638,7.3099,136.8,136.78,21.8917]
[1718872994242,7.3104,136.79,136.72,21.9167]
[1718872994434,7.3104,136.79,136.73,20.0]
[1718872995430,7.3104,136.79,136.73,0.17]
[1718872995745,0.17,136.84,136.72,21.9167]
[1718872995947,0.17,136.82,136.72,21.9167]
[1718872996240,52.3088,136.82,136.72,43.5067]
[1718872997150,7.3088,136.82,136.75,0.17]
[1718872997337,7.3085,136.83,136.75,20.68]
[1718872997532,7.3089,136.82,136.75,20.68]
[1718872997733,7.3084,136.83,136.75,20.68]
[1718872998145,7.3088,136.82,136.75,20.68]
[1718872998732,7.3094,136.81,136.75,20.68]
[1718872999132,7.3102,136.8,136.74,21.9167]
[1718872999434,5.65029738,136.85,136.74,21.9167]
[1718872999435,7.3094,136.81,136.74,21.9167]
[1718873000147,7.309,136.82,136.74,21.9167]
[1718873000552,7.3094,136.81,136.74,21.9167]
[1718873001132,7.3091,136.82,136.74,21.9167]
[1718873001332,7.3084,136.83,136.75,20.17]
[1718873001553,7.3079,136.84,136.76,0.34]
[1718873001735,7.3079,136.84,136.77,0.17]
[1718873002053,7.3074,136.85,136.79,16.0938]
[1718873002540,7.3068,136.86,136.79,16.0938]
[1718873002748,36.9642,136.9,136.79,16.0938]
[1718873002941,7.3076,136.85,136.79,16.0938]
[1718873004729,7.3069,136.86,136.79,16.0938]